[Event "2nd Doppelbauer Kiel GM 2022"]
[Site "Kiel"]
[Date "2022.07.01"]
[Round "4.4"]
[White "Bogner, Sebastian"]
[Black "Pajeken, Jakob Leon"]
[Result "1/2-1/2"]
[ECO "C95"]
[WhiteElo "2553"]
[BlackElo "2398"]
[Annotator "TA"]
[PlyCount "78"]
[EventDate "2022.06.30"]
[EventType "tourn"]
[EventCountry "GER"]
[SourceTitle "playchess.com"]
[Source "ChessBase"]
[SourceQuality "1"]
[TimeControl "40/5400+30:1800+30"]

{[%evp 24,78,14,14,14,17,14,17,14,14,18,0,2,0,0,0,27,22,28,19,25,17,15,8,15,0,36,16,14,8,14,16,31,15,68,68,42,7,7,0,0,0,70,70,67,52,100,0,0,0,0,0,0,0,0,0,0]} 1. e4 {[%emt 0:00:07]} e5 {[%emt 1:31:00]} 2. Nf3 {[%emt 0:00:45]} Nc6 {[%emt 0:00:00]} 3. Bb5 {[%emt 0:00:45][%cal Bf1b5,Bb5a4,Ba4b3][%mdl 32]} a6 {[%emt 0:00:00]} 4. Ba4 {[%emt 0:00:04]} Nf6 {[%emt 0:00:00]} 5. O-O {[%emt 0:00:05]} Be7 {[%emt 0:00:00]} 6. Re1 {[%emt 0:00:20]} b5 {[%emt 0:00:00]} 7. Bb3 {[%emt 0:00:03]} d6 {[%emt 0:00:00]} 8. c3 {[%emt 0:00:31]} O-O {[%emt 0:00:00]} 9. h3 {[%emt 0:00:18]} Nb8 {[%emt 0:00:00]} 10. d4 {[%emt 0:00:23]} Nbd7 {[%emt 0:00:00]} 11. Nbd2 {[%emt 0:00:26]} Bb7 {[%emt 0:00:00]} 12. Bc2 {[%emt 0:00:57]} c5 {[%emt 0:00:00]} 13. d5 $1 {[%emt 0:00:29] 13.d5 scores better than 13.Nf1.} c4 {[%emt 0:00:00] C95: Closed Ruy Lopez: Breyer Variation with 10 d4.} 14. b3 {[%emt 0:00:35]} cxb3 {[%emt 0:00:00]} 15. axb3 {[%emt 0:00:03]} Qc7 {[%emt 0:00:00]} 16. Nb1 {[%emt 0:11:18]} Rfc8 {[%emt 0:00:00] [#]} 17. b4 $146 {[%emt 0:15:23]} ({Predecessor:} 17. Be3 a5 18. Nfd2 Bd8 19. Bd3 Ba6 20. b4 a4 21. Qe2 Qb7 22. Rc1 Bb6 23. Na3 Bxe3 24. Qxe3 {½-½ (85) Martinez Alcantara,J (2620)-Lubbe,N (2431) Chess.com INT 2021}) 17... Nb6 {[%emt 0:00:00]} 18. Nfd2 {[%emt 0:01:49]} Nfd7 {[%emt 0:00:00][%cal Of7f5]} 19. Nb3 {[%emt 0:07:20]} Nc4 {[%emt 0:00:00]} (19... f5 $5 {[%cal Rf5e4]}) 20. N1d2 {[%emt 0:00:36]} (20. Qg4 {with more complications.} Ndb6 21. N1d2 Bd8 22. Nxc4 Nxc4 23. Rd1) 20... Ndb6 {[%emt 0:00:00]} 21. Nxc4 {[%emt 0:00:14]} (21. Qg4 {looks sharper.} Bd8 22. Nxc4 Nxc4 23. Rd1) 21... Nxc4 {[%emt 0:00:00]} 22. Bd3 {[%emt 0:00:16]} (22. Qe2 {keeps more tension.} Bh4 23. Qg4 Bd8 24. Rd1) 22... Bd8 {[%emt 0:00:00]} 23. Nd2 {[%emt 0:07:29]} Nb6 {[%emt 0:00:00]} 24. Ra3 {[%emt 0:08:22]} Bg5 {[%emt 0:00:00][%cal Of7f5]} 25. Nb1 {[%emt 0:08:15]} (25. Qg4 {is more complex.} Bf4 26. Nf1 Qd7 27. Be3) 25... Bxc1 {[%emt 0:00:00]} 26. Qxc1 {[%emt 0:02:55]} f5 {[%emt 0:00:00]} 27. f3 {[%emt 0:00:11]} f4 {[%emt 0:00:00]} 28. Re2 {[%emt 0:03:41]} Nd7 {[%emt 0:00:00]} (28... Qb8 $11) 29. Rc2 $14 {[%emt 0:01:41]} Qb6+ {[%emt 0:00:00]} 30. Kf1 {[%emt 0:03:28]} a5 {[%emt 0:00:00]} 31. Qd2 {[%emt 0:00:41]} axb4 {[%emt 0:00:00]} 32. cxb4 {[%emt 0:00:13]} Rxc2 {[%emt 0:00:00]} (32... Rxa3 $11 33. Rxc8+ Bxc8 34. Nxa3 Ba6) 33. Rxa8+ {[%emt 0:02:30]} Bxa8 {[%emt 0:00:00]} 34. Qxc2 {[%emt 0:00:18]} Nf6 {[%emt 0:00:00]} (34... Bb7 $14) 35. Qc8+ {[%emt 0:22:59]} (35. Na3 $16 {Black must now prevent Qc8+.} Bb7 36. Nxb5) 35... Kf7 $11 {[%emt 0:00:00] The position is equal.} 36. Qe6+ {[%emt 0:00:53]} Kg6 {[%emt 0:00:00]} 37. Qf5+ {[%emt 0:00:22]} Kf7 $1 {[%emt 0:00:00]} 38. Qe6+ {[%emt 0:00:09]} Kg6 {[%emt 0:01:35]} 39. Qf5+ {[%emt 0:00:57]} Kf7 $1 {[%emt 0:00:06] Weighted Error Value: White=0.07 (flawless) /Black=0.12 (very precise)} 1/2-1/2

[Event "2nd Doppelbauer Kiel GM 2022"]
[Site "Kiel"]
[Date "2022.07.01"]
[Round "4.5"]
[White "Horvath, Dominik"]
[Black "Rosner, Jonas"]
[Result "1-0"]
[ECO "D52"]
[WhiteElo "2482"]
[BlackElo "2469"]
[Annotator "TA"]
[PlyCount "81"]
[EventDate "2022.06.30"]
[EventType "tourn"]
[EventCountry "GER"]
[SourceTitle "playchess.com"]
[Source "ChessBase"]
[SourceQuality "1"]
[TimeControl "40/5400+30:1800+30"]

{[%evp 18,81,21,19,42,-6,-6,-31,51,46,20,21,38,46,39,27,29,11,16,0,0,4,7,0,58,52,66,72,109,80,81,100,130,127,104,53,58,50,122,159,572,553,744,723,644,465,625,613,1456,1554,1153,775,729,659,1006,452,503,0,29995,29996,29996,29997,29997,29998,29998,29999]} 1. d4 {[%emt 0:00:03]} d5 {[%emt 0:00:06]} 2. c4 {[%emt 0:00:04]} c6 {[%emt 0:00:06]} 3. Nf3 {[%emt 0:00:04]} Nf6 {[%emt 0:00:14]} 4. Nc3 {[%emt 0:00:04]} e6 {[%emt 0:00:41]} 5. Bg5 {[%emt 0:00:07]} Nbd7 {[%emt 0:00:27]} 6. e3 {[%emt 0:00:06]} Qa5 {[%emt 0:00:46]} 7. Nd2 {[%emt 0:00:06]} dxc4 {[%emt 0:00:44]} 8. Bxf6 {[%emt 0:00:05]} Nxf6 {[%emt 0:00:08]} 9. Nxc4 {[%emt 0:00:04]} Qc7 {[%emt 0:00:22]} 10. Rc1 {[%emt 0:00:08]} Bd6 {[%emt 0:01:31] [#] D52: Queen's Gambit Declined: Cambridge Springs Variation.} 11. e4 $146 {[%emt 0:10:47]} (11. f4 $14 {deserves consideration.}) ({Predecessor:} 11. f4 Be7 12. Be2 O-O 13. O-O Rd8 14. Qc2 Bd7 15. Ne4 Nxe4 16. Qxe4 c5 17. f5 Qc6 18. Qxc6 Bxc6 19. fxe6 fxe6 {0-1 (41) Gukesh,D (2614)-Karthikeyan,M (2622) chess24.com INT 2022}) 11... e5 $11 {[%emt 0:04:22]} 12. f4 {[%emt 0:17:11]} Bb4 {[%emt 0:17:19]} ({But not} 12... exf4 13. e5 Be7 14. exf6 Bxf6 15. Bd3 $16) (12... exd4 $15 13. Nxd6+ (13. e5 Bc5 $17) 13... Qxd6) 13. fxe5 $14 {[%emt 0:04:52]} Nxe4 {[%emt 0:01:48]} 14. Bd3 {[%emt 0:02:56]} Nxc3 {[%emt 0:00:42]} 15. bxc3 {[%emt 0:00:05]} Be7 {[%emt 0:00:16]} 16. O-O {[%emt 0:00:55][%cal Of1f7]} Be6 {[%emt 0:02:17]} 17. Qf3 {[%emt 0:00:43]} Qd7 {[%emt 0:09:34]} 18. Rb1 {[%emt 0:07:16] Threatens to win with Na5.} O-O {[%emt 0:03:41]} 19. Ne3 {[%emt 0:02:31]} g6 {[%emt 0:08:06] Inhibits Qh5.} 20. Qf4 {[%emt 0:09:27]} Rad8 {[%emt 0:10:16]} (20... f6 $11) 21. Qh6 $1 {[%emt 0:03:18][%cal Oe3f5] Hoping for Nf5!} f5 {[%emt 0:02:10]} 22. h4 $1 {[%emt 0:03:52] h5 is the strong threat.} Rf7 {[%emt 0:02:26] [#]} 23. h5 $1 {[%emt 0:01:38]} Bf8 {[%emt 0:01:32] [#]} 24. Qf4 {[%emt 0:02:27]} Qe7 {[%emt 0:05:13]} 25. Qg3 {[%emt 0:01:37]} Rg7 {[%emt 0:02:41]} 26. h6 {[%emt 0:08:31]} (26. Rb2 $16) 26... Rf7 {[%emt 0:00:03]} 27. Bxf5 {[%emt 0:00:50]} Bxa2 {[%emt 0:06:50]} ({Black should try} 27... Bxf5 $14 28. Nxf5 Qd7) 28. Rb2 $16 {[%emt 0:03:43] White is more active.} Be6 {[%emt 0:02:35] [#]} (28... Bxh6 $16 29. Ng4 (29. Rxa2 Bxe3+ 30. Qxe3 Rxf5 $16) 29... Kg7) 29. Rxb7 $3 $18 {[%emt 0:00:18][%mdl 512]} Rd7 {[%emt 0:02:48]} (29... Rxf5 30. Rxe7) 30. Rb8 {[%emt 0:00:32]} a5 {[%emt 0:03:32]} 31. Ra8 {[%emt 0:06:04]} Bxf5 {[%emt 0:02:00]} 32. Nxf5 {[%emt 0:00:47]} Qe6 {[%emt 0:00:20]} 33. Nd6 {[%emt 0:00:07]} Ra7 {[%emt 0:01:11]} 34. Rxa7 {[%emt 0:01:34]} Rxa7 {[%emt 0:00:04]} 35. Rf6 {[%emt 0:00:16]} Qb3 {[%emt 0:01:28]} 36. e6 {[%emt 0:06:13]} (36. Qf3 $142 {[%csl Gf3][%cal Rf6f8]} Bxd6 37. exd6) 36... Bxh6 {[%emt 0:05:15]} 37. Nc8 $2 $40 {[%emt 0:02:22][%mdl 128] White has some attack.} (37. Rf7 $18 Qd1+ 38. Rf1) 37... Ra8 {[%emt 0:01:26][%mdl 8192] [#]} (37... Rc7 $11) 38. Rxg6+ $1 {[%emt 0:00:17][%mdl 512] White mates.} hxg6 {[%emt 0:00:49]} 39. Qxg6+ {[%emt 0:00:03]} Bg7 {[%emt 0:00:39]} 40. Ne7+ {[%emt 0:00:03]} Kh8 {[%emt 0:00:07]} 41. Qh5+ {[%emt 0:30:03] Weighted Error Value: White=0.35/Black=0.63} 1-0

[Event "2nd Doppelbauer Kiel GM 2022"]
[Site "Kiel"]
[Date "2022.07.02"]
[Round "5.1"]
[White "Rosner, Jonas"]
[Black "Parvanyan, Ashot"]
[Result "1/2-1/2"]
[ECO "D55"]
[WhiteElo "2469"]
[BlackElo "2455"]
[Annotator "TA"]
[PlyCount "64"]
[EventDate "2022.06.30"]
[EventType "tourn"]
[EventCountry "GER"]
[SourceTitle "playchess.com"]
[Source "ChessBase"]
[SourceQuality "1"]
[TimeControl "40/5400+30:1800+30"]

{[%evp 27,64,9,20,14,11,22,17,16,22,14,14,9,0,0,18,0,0,-20,-35,-19,-27,-29,-28,-172,-172,-119,-196,-144,0,0,0,0,0,0,0,0,0,0,0]} 1. d4 {[%emt 0:00:03]} Nf6 {[%emt 0:00:37]} 2. Nf3 {[%emt 0:00:10]} e6 {[%emt 0:00:54]} 3. c4 {[%emt 0:00:23]} d5 {[%emt 0:00:32]} 4. e3 {[%emt 0:00:25]} a6 {[%emt 0:04:01]} 5. b3 {[%emt 0:00:53]} b6 {[%emt 0:01:44]} 6. Bd3 {[%emt 0:00:47]} Bb7 {[%emt 0:02:58]} 7. O-O {[%emt 0:00:41]} Nbd7 {[%emt 0:00:03]} 8. Qe2 {[%emt 0:01:12]} Bd6 {[%emt 0:01:48]} 9. cxd5 {[%emt 0:01:01]} exd5 {[%emt 0:00:13]} 10. Ba3 {[%emt 0:00:32]} Bxa3 {[%emt 0:01:41]} 11. Nxa3 {[%emt 0:00:03]} Qe7 {[%emt 0:00:25]} 12. Nb1 {[%emt 0:04:18]} O-O {[%emt 0:01:43]} 13. Nc3 {[%emt 0:00:44]} c5 {[%emt 0:01:19]} 14. Rac1 {[%emt 0:02:25]} Ne4 {[%emt 0:03:17]} 15. Rfd1 {[%emt 0:03:49] [#] D55: Queen's Gambit Declined: 4 Bg5 Be7: Lines without ...h6 and 6...h6 7 Bxf6.} Rfc8 $146 {[%emt 0:04:34]} ({Predecessor:} 15... Rfe8 16. Na4 Qf6 17. dxc5 Ndxc5 18. Qb2 Qxb2 19. Nxb2 Rac8 20. Nd4 b5 21. b4 Ne6 {½-½ (89) Shaposhnikov,E (2570)-Shubin,K (2411) Ekaterinburg 2019}) 16. dxc5 {[%emt 0:09:56][%cal Oc5c6]} Nxc3 {[%emt 0:16:34]} 17. Rxc3 {[%emt 0:00:11][%cal Od3h7] With the idea Bxh7+!} bxc5 {[%emt 0:00:07]} 18. Rdc1 {[%emt 0:03:40]} g6 {[%emt 0:04:24]} 19. h3 {[%emt 0:06:34]} Nf8 {[%emt 0:01:18]} 20. Nd2 {[%emt 0:08:28]} Ne6 {[%emt 0:03:25]} 21. Qg4 {[%emt 0:01:21]} Rd8 {[%emt 0:10:28]} 22. Nf3 {[%emt 0:02:58]} d4 {[%emt 0:05:23]} 23. exd4 {[%emt 0:02:31]} cxd4 {[%emt 0:00:05]} 24. R3c2 {[%emt 0:04:57]} Qf6 {[%emt 0:00:14]} 25. Nd2 {[%emt 0:04:46] [#]} (25. Ne1 $11) 25... Nf4 $1 $19 {[%emt 0:09:14]} 26. Bf1 {[%emt 0:10:10]} (26. Be4 $19 d3 27. Bxb7 dxc2 28. Rxc2) 26... h5 $17 {[%emt 0:03:06]} 27. Qd1 {[%emt 0:01:27]} Nxh3+ {[%emt 0:22:14]} 28. gxh3 $11 {[%emt 0:00:25] Strongly threatening Bg2. The position is equal.} Qg5+ {[%emt 0:00:08]} 29. Kh2 {[%emt 0:00:26]} Qf4+ {[%emt 0:00:29]} 30. Kg1 {[%emt 0:00:04]} Qg5+ {[%emt 0:01:56]} 31. Kh2 {[%emt 0:00:01]} Qf4+ {[%emt 0:00:17]} 32. Kg1 {[%emt 0:00:02] [#] And now Bg2 would win.} Qg5+ {[%emt 0:00:44] Weighted Error Value: White=0.25 (precise) /Black=0.10 (very precise)} 1/2-1/2

[Event "2nd Doppelbauer Kiel GM 2022"]
[Site "Kiel"]
[Date "2022.07.02"]
[Round "5.2"]
[White "Pajeken, Jakob Leon"]
[Black "Horvath, Dominik"]
[Result "1/2-1/2"]
[ECO "D02"]
[WhiteElo "2398"]
[BlackElo "2482"]
[Annotator "TA"]
[PlyCount "40"]
[EventDate "2022.06.30"]
[EventType "tourn"]
[EventCountry "GER"]
[SourceTitle "playchess.com"]
[Source "ChessBase"]
[SourceQuality "1"]
[TimeControl "40/5400+30:1800+30"]

{[%evp 11,40,22,16,27,24,19,19,21,18,20,27,20,28,5,16,25,55,51,87,81,85,79,225,69,73,41,39,0,41,36,30]} 1. Nf3 {[%emt 0:00:08]} d5 {[%emt 0:00:04]} 2. g3 {[%emt 0:00:06]} Nd7 {[%emt 0:00:04]} 3. d4 {[%emt 0:00:13]} e6 {[%emt 0:00:05]} 4. Bg2 {[%emt 0:00:33]} Ngf6 {[%emt 0:00:11]} 5. O-O {[%emt 0:00:42]} b5 {[%emt 0:00:04]} 6. a4 {[%emt 0:00:06]} b4 {[%emt 0:00:04]} 7. c4 {[%emt 0:00:03] D02: 1 d4 d5 2 Nf3 sidelines, including 2...Nf6 3 g3 and 2...Nf6 3 Bf4.} bxc3 {[%emt 0:00:04]} 8. Nxc3 {[%emt 0:00:04] 8.Nxc3 is better than 8.bxc3.} a5 {[%emt 0:00:08] [#]} 9. e4 $146 {[%emt 0:09:55] The position is equal.} ({Predecessor:} 9. Bf4 c6 10. e4 Ba6 11. Re1 Bb4 12. e5 Ng8 13. h4 Ne7 14. h5 h6 15. g4 {½-½ (31) Nguyen,T (2610)-Vallejo Pons,F (2703) Prague 2022}) 9... dxe4 {[%emt 0:00:50]} 10. Ng5 {[%emt 0:00:36]} Bb7 {[%emt 0:01:03]} 11. Ngxe4 {[%emt 0:01:37]} Nxe4 {[%emt 0:02:21]} 12. Nxe4 {[%emt 0:00:16]} Bd5 {[%emt 0:05:45]} 13. Bf4 {[%emt 0:05:27]} Be7 {[%emt 0:00:07]} 14. Rc1 {[%emt 0:02:03]} Ra7 {[%emt 0:00:25]} 15. Nc3 $36 {[%emt 0:04:51][%mdl 2048] Keeping Black busy. 0x0.00207ca1f54bdp-1022s more active pieces. The black rooks are badly placed.} Bxg2 {[%emt 0:16:20]} 16. Kxg2 {[%emt 0:00:32] Black must now prevent Nb5.} c6 {[%emt 0:00:11] [#] Prevents Nb5.} (16... O-O $16 {might work better.}) 17. Qf3 $2 {[%emt 0:06:08]} (17. d5 $1 $18 {[%cal Rd5c6]} cxd5 18. Qd4) 17... Ra6 $14 {[%emt 0:07:57]} 18. Ne4 {[%emt 0:09:55]} (18. Qe2 $5 {[%cal Re2a6]} Rb6 19. Ne4 $11) 18... O-O {[%emt 0:00:34]} 19. Rc4 {[%emt 0:05:50]} Rb6 {[%emt 0:03:39]} 20. b3 {[%emt 0:01:52]} Nf6 {[%emt 0:32:56] Weighted Error Value: White=0.21 (precise) /Black=0.19 (very precise)} 1/2-1/2

[Event "2nd Doppelbauer Kiel GM 2022"]
[Site "Kiel"]
[Date "2022.07.02"]
[Round "5.3"]
[White "Hacker, Jonas"]
[Black "Bogner, Sebastian"]
[Result "1/2-1/2"]
[ECO "B40"]
[WhiteElo "2396"]
[BlackElo "2553"]
[Annotator "TA"]
[PlyCount "24"]
[EventDate "2022.06.30"]
[EventType "tourn"]
[EventCountry "GER"]
[SourceTitle "playchess.com"]
[Source "ChessBase"]
[SourceQuality "1"]
[TimeControl "40/5400+30:1800+30"]

{[%evp 9,24,0,0,8,10,10,4,13,11,0,10,0,0,0,8,-9,0]} 1. e4 {[%emt 0:00:03]} c5 {[%emt 0:00:49]} 2. Nf3 {[%emt 0:00:06]} e6 {[%emt 0:00:13]} 3. g3 {[%emt 0:01:28]} Nc6 {[%emt 0:00:54]} 4. Bg2 {[%emt 0:00:04]} Nf6 {[%emt 0:00:08]} 5. Qe2 {[%emt 0:00:09]} e5 {[%emt 0:01:21] The position is equal.} 6. O-O {[%emt 0:00:29] B40: Sicilian: 2...e6, Unusual lines.} Be7 {[%emt 0:00:07]} 7. Nc3 {[%emt 0:00:40]} d6 {[%emt 0:00:08]} 8. Nd5 {[%emt 0:02:10]} Be6 {[%emt 0:00:06] [#]} 9. Ng5 $146 {[%emt 0:08:23]} ({Predecessor:} 9. Ne1 O-O 10. c3 Bxd5 11. exd5 Nb8 12. Nc2 Nbd7 13. d3 Re8 14. Ne3 b5 15. a4 a6 16. Bd2 Qb6 17. b4 Bf8 18. Rfb1 e4 19. dxe4 Nxe4 20. Bxe4 Rxe4 21. axb5 cxb4 22. cxb4 {0-1 (43) Murzin,V (2532)-Matlakov,M (2674) Chess.com INT 2022}) 9... Bd7 {[%emt 0:00:09] [#] White must now prevent ...Nxd5.} 10. Nf3 {[%emt 0:00:42]} Be6 {[%emt 0:03:04]} 11. Ng5 {[%emt 0:01:59]} Bd7 {[%emt 0:00:07] Threatens to win with ...Nxd5.} 12. Nf3 {[%emt 0:00:33]} Be6 {[%emt 1:29:24] Not much happened in this game.  Weighted Error Value: White=0.05 (flawless) /Black=0.00 (flawless)} 1/2-1/2

[Event "2nd Doppelbauer Kiel GM 2022"]
[Site "Kiel"]
[Date "2022.07.02"]
[Round "5.4"]
[White "Teclaf, Pawel"]
[Black "Ernst, Sipke"]
[Result "1/2-1/2"]
[ECO "C47"]
[WhiteElo "2537"]
[BlackElo "2547"]
[Annotator "TA"]
[PlyCount "81"]
[EventDate "2022.06.30"]
[EventType "tourn"]
[EventCountry "GER"]
[SourceTitle "playchess.com"]
[Source "ChessBase"]
[SourceQuality "1"]
[TimeControl "40/5400+30:1800+30"]

{[%evp 16,81,6,-1,6,4,7,7,6,6,6,7,6,6,6,6,6,6,6,6,33,32,55,12,16,5,5,5,11,11,12,12,12,5,6,6,16,5,11,5,5,4,8,4,12,11,11,11,11,11,11,11,11,11,11,0,0,0,0,0,8,8,11,11,11,11,12,12]} 1. e4 {[%emt 0:00:03]} e5 {[%emt 0:00:05]} 2. Nf3 {[%emt 0:00:03]} Nc6 {[%emt 0:00:05]} 3. Nc3 {[%emt 0:00:04]} Nf6 {[%emt 0:00:05]} 4. d4 {[%emt 0:00:04]} exd4 {[%emt 0:00:03]} 5. Nxd4 {[%emt 0:00:04]} Bb4 {[%emt 0:00:04]} 6. Nxc6 {[%emt 0:00:04]} bxc6 {[%emt 0:00:03]} 7. Bd3 {[%emt 0:00:05][%cal Bf1d3,Bd3e4,Be4c6][%mdl 32]} d5 {[%emt 0:00:17]} 8. Bd2 {[%emt 0:00:04]} O-O {[%emt 0:01:57]} 9. O-O {[%emt 0:02:25]} Bxc3 {[%emt 0:11:55] C47: Scotch Four Knights and Four Knights with 4 g3.} (9... Bd6 {feels hotter.} 10. Bg5 h6 11. Bh4 Rb8) 10. Bxc3 {[%emt 0:00:07]} dxe4 $1 {[%emt 0:03:27][%mdl 4] is currently scoring better than 10...Nxe4.} (10... Nxe4 {looks sharper.} 11. Bxe4 dxe4 12. Qe2 Bf5) 11. Bxf6 {[%emt 0:00:06][%mdl 64] [#] Remove Defender} Qxf6 {[%emt 0:00:02]} 12. Bxe4 {[%emt 0:00:04]} Qxb2 {[%emt 0:00:05]} 13. Bxc6 {[%emt 0:00:04]} Rb8 {[%emt 0:00:04]} 14. Rb1 {[%emt 0:00:06]} Qxb1 {[%emt 0:00:03]} 15. Qxb1 {[%emt 0:00:03]} Rxb1 {[%emt 0:00:08]} 16. Rxb1 $11 {[%emt 0:00:29][%mdl 4096] Endgame KRB-KRB} Rd8 {[%emt 0:03:51]} 17. Bf3 {[%emt 0:00:03] [#]} Ba6 $146 {[%emt 0:18:32]} ({Predecessor:} 17... Bf5 18. Rb7 Bxc2 19. Rxc7 Be4 20. Be2 g5 21. h3 a5 22. Ra7 Ra8 23. Re7 Bd5 {½-½ (37) Andreikin,D (2724)-Rapport,R (2762) Belgrade 2022}) 18. Rb3 {[%emt 0:14:26]} c5 {[%emt 0:12:58]} 19. Ra3 {[%emt 0:15:38]} Bb7 {[%emt 0:03:00] The position is equal.} 20. Rxa7 {[%emt 0:01:58]} Bxf3 {[%emt 0:00:03]} 21. gxf3 {[%emt 0:00:04] KR-KR} Kf8 {[%emt 0:00:23]} 22. Ra5 {[%emt 0:06:03]} Rd4 {[%emt 0:00:06]} 23. Rxc5 {[%emt 0:04:34]} Ra4 {[%emt 0:00:05]} 24. Rc7 {[%emt 0:00:11]} Rxa2 {[%emt 0:00:29]} 25. Kg2 {[%emt 0:01:43]} Ra6 {[%emt 0:00:09]} 26. Rc4 {[%emt 0:05:02]} Rg6+ {[%emt 0:00:22]} 27. Kf1 {[%emt 0:00:22]} Ra6 {[%emt 0:07:02]} 28. Ke2 {[%emt 0:02:35]} Ra3 {[%emt 0:00:14]} 29. Rc7 {[%emt 0:04:01]} g5 {[%emt 0:03:07]} 30. c4 {[%emt 0:02:38][%cal Bc2c4,Bc4c5,Bc5c6,Bc6c7][%mdl 32]} Rc3 {[%emt 0:02:17]} 31. c5 {[%emt 0:02:02]} Kg7 {[%emt 0:08:07]} 32. c6 {[%emt 0:01:29]} Kf6 {[%emt 0:07:22]} 33. Kd2 {[%emt 0:01:15]} Rc5 {[%emt 0:01:50]} 34. Ke3 {[%emt 0:05:05]} Ke6 {[%emt 0:03:15]} 35. Rc8 {[%emt 0:08:06]} Kd6 {[%emt 0:02:25]} 36. c7 {[%emt 0:07:32]} Re5+ {[%emt 0:02:04]} 37. Kd3 {[%emt 0:01:36]} Rf5 {[%emt 0:01:17]} 38. Ke2 {[%emt 0:01:22]} Kd7 {[%emt 0:00:09]} 39. Rh8 {[%emt 0:00:24]} Kxc7 {[%emt 0:00:04]} 40. Rxh7 {[%emt 0:00:04]} Kd6 {[%emt 0:00:08]} 41. h4 {[%emt 0:31:13] Weighted Error Value: White=0.04 (flawless) /Black=0.03 (flawless)} 1/2-1/2